bitfinex/quotes_ETHUSD_20250708
["timestamp","ask_amount","ask_price","bid_price","bid_amount"]
[1751990362610,4.0295203,2568.0,2567.9,0.36509331]
[1751990362780,0.1944,2568.0,2567.9,0.36509331]
[1751990363212,9.24542901,2568.1,2567.9,0.36509331]
[1751990363401,9.24542901,2568.1,2568.0,0.36509331]
[1751990363603,4.08841381,2568.1,2568.0,0.36509331]
[1751990363803,9.13642729,2568.1,2568.0,0.36509331]
[1751990366818,6.1294,2568.1,2568.0,0.36509331]
[1751990367215,4.86226157,2568.1,2568.0,0.36509331]
[1751990367386,5.05666157,2568.1,2568.0,0.36509331]
[1751990367587,4.67652004,2568.1,2568.0,0.36509331]
[1751990367789,7.93699943,2568.1,2568.0,0.36509331]
[1751990368208,6.16300001,2568.1,2568.0,0.36509331]
[1751990368912,9.82804861,2568.1,2568.0,0.36509331]
[1751990371304,0.1964,2568.3,2568.0,0.36509331]
[1751990371513,0.1964,2568.3,2568.1,0.36509331]
[1751990371717,15.04907547,2568.3,2568.2,0.36509331]
[1751990372016,0.002,2568.4,2568.2,0.36509331]
[1751990372197,10.002,2568.4,2568.3,0.36509331]
[1751990372728,13.89547453,2568.4,2568.3,0.36509331]
[1751990372921,5.29263038,2568.4,2568.3,0.36509331]
[1751990373233,1.39915585,2568.4,2568.3,0.36509331]
[1751990373801,1.39915585,2568.4,2568.0,4.89627921]
[1751990373986,7.33315585,2568.4,2568.0,6.45549109]
[1751990374328,3.89365908,2568.3,2568.0,2.56141188]
[1751990374542,5.934,2568.4,2568.0,1.0022]
[1751990374703,3.89384387,2568.2,2568.0,0.1944]
[1751990375092,3.89369815,2568.3,2568.0,0.1944]
[1751990375529,3.89379313,2568.2,2568.0,0.1944]
[1751990376047,9.82782655,2568.2,2568.0,0.1944]
[1751990377034,5.934,2568.2,2568.0,0.1944]
[1751990377554,9.82778543,2568.2,2568.0,0.1944]
[1751990381258,3.89392936,2568.1,2568.0,0.1944]
[1751990381557,3.89392936,2568.1,2567.8,0.001]
[1751990381869,9.82786618,2568.2,2567.9,0.1944]
[1751990382238,9.82786618,2568.2,2568.0,0.36484567]
[1751990382449,0.36445525,2568.1,2567.9,0.1944]
[1751990382748,0.36445525,2568.0,2567.9,0.1944]
[1751990386245,4.25853624,2568.0,2567.9,0.1944]
[1751990387357,0.36445525,2568.0,2567.9,0.1944]
[1751990390732,0.36454318,2568.0,2567.9,0.1944]
[1751990393142,0.36454318,2568.0,2567.9,4.08863264]
[1751990393343,0.36454318,2568.0,2567.9,4.96735176]
[1751990393543,0.36454318,2568.0,2567.9,1.07311912]
[1751990395468,0.36454318,2568.0,2567.9,0.1944]
[1751990396864,0.36477424,2568.0,2567.9,0.1944]
[1751990397066,0.36477424,2568.0,2567.9,0.1954]
[1751990399455,0.36477424,2568.0,2567.9,4.08963264]
[1751990400610,0.002,2568.4,2567.9,0.1954]
[1751990400749,0.002,2568.4,2568.0,6.80151749]
[1751990400953,0.36494158,2568.3,2568.1,0.7715]
[1751990401503,0.36494158,2568.3,2568.2,0.1944]
[1751990402584,0.36494158,2568.3,2568.2,7.76881749]
[1751990402967,0.36494158,2568.3,2568.2,13.70081749]
[1751990403165,0.36494158,2568.3,2568.2,15.07089924]
[1751990403866,0.36494158,2568.3,2568.2,18.96467698]
[1751990404551,0.36494158,2568.3,2568.2,6.23115949]
[1751990404754,0.36494158,2568.3,2568.2,12.16215949]
[1751990405552,0.36494158,2568.3,2568.2,18.96367698]
[1751990412567,0.002,2568.4,2568.3,3.89362613]
[1751990412894,0.002,2568.4,2568.3,6.60768288]
[1751990415601,0.36577456,2568.4,2568.3,12.49874662]
[1751990415766,0.36577456,2568.4,2568.3,9.82362613]
[1751990417097,0.36577456,2568.4,2568.3,9.82262613]
[1751990417831,0.36577456,2568.4,2568.3,17.39884362]
[1751990418002,0.002,2568.4,2568.3,17.39884362]
[1751990419294,0.002,2568.4,2568.3,10.59732613]
[1751990419510,0.002,2568.4,2568.3,12.88303344]
[1751990422723,0.002,2568.4,2568.3,19.68455093]
[1751990422926,0.002,2568.4,2568.3,29.68455093]
[1751990425089,0.002,2568.4,2568.3,30.23455093]
[1751990426524,1e-08,2568.4,2568.3,30.23455093]
[1751990429202,1e-08,2568.4,2568.3,33.72719142]
[1751990430935,1e-08,2568.4,2568.3,33.7325832]
[1751990431606,1e-08,2568.4,2568.3,30.23455093]
[1751990435607,0.002,2568.7,2568.6,5.21757137]
[1751990435818,0.002,2568.7,2568.6,30.09052192]
[1751990436021,0.002,2568.7,2568.6,30.05159021]
[1751990436537,0.0722728,2568.9,2568.8,4.44286826]
[1751990436756,0.0722728,2568.9,2568.8,27.98471443]
[1751990436925,0.0722728,2568.9,2568.8,27.94578575]
[1751990437126,0.0722728,2568.9,2568.8,18.62597293]
[1751990437338,0.0722728,2568.9,2568.8,13.77857293]
[1751990437538,0.0722728,2568.9,2568.8,10.01426826]
[1751990439325,0.0722728,2568.9,2568.8,10.83536826]
[1751990441149,0.0722728,2568.9,2568.8,10.01426826]
[1751990441356,0.0722728,2568.9,2568.8,4.08726826]
[1751990441660,0.0722728,2568.9,2568.8,10.01326826]
[1751990443863,0.0722728,2568.9,2568.8,0.1944]
[1751990444231,0.0722728,2568.9,2568.8,6.1204]
[1751990444731,0.43598297,2568.9,2568.8,6.1204]
[1751990444957,4.32883809,2568.9,2568.3,10.001]
[1751990445129,3.89286826,2568.8,2568.7,0.1944]
[1751990445331,3.89286826,2568.8,2568.3,0.001]
[1751990445332,0.3637239,2568.8,2568.3,0.001]
[1751990445668,0.3637239,2568.8,2568.4,5.926]
[1751990445669,4.2568173,2568.7,2568.4,5.926]
[1751990445834,0.36367802,2568.6,2568.4,5.926]
[1751990446033,3.8930934,2568.7,2568.4,5.926]
[1751990446250,0.3636683,2568.6,2568.4,5.926]
[1751990446453,0.3636683,2568.5,2568.4,5.926]
[1751990447580,0.3636683,2568.5,2568.3,0.1954]
[1751990447733,0.3636683,2568.4,2568.3,6.1214]
[1751990447933,0.3636683,2568.4,2568.3,0.1954]
[1751990448235,0.3636683,2568.4,2568.3,6.1214]
[1751990449247,0.3636683,2568.4,2568.3,0.1954]
[1751990449779,4.25714283,2568.4,2568.3,0.1954]
[1751990450082,0.3636683,2568.4,2568.3,0.1954]
[1751990452683,4.25714283,2568.4,2568.3,0.1954]
[1751990452888,4.25714283,2568.4,2568.3,0.001]
[1751990454767,3.89408099,2568.0,2567.9,0.001]
[1751990454986,11.05926678,2568.0,2567.9,0.001]
[1751990457005,4.25774929,2568.0,2567.9,0.001]
[1751990457201,0.3636683,2568.0,2567.9,0.001]
[1751990457396,0.3636683,2568.0,2567.9,6.99691749]
[1751990457696,3.89324,2568.6,2568.1,3.89386517]
[1751990457866,0.36252746,2568.5,2568.1,3.93280446]
[1751990458190,0.36252746,2568.4,2568.3,0.1944]
[1751990458692,0.36252746,2568.4,2568.3,4.08802613]
[1751990459768,3.89288489,2568.8,2568.3,4.08796318]
[1751990459991,0.36243831,2568.7,2568.4,0.1944]
[1751990460294,0.36243831,2568.6,2568.4,0.1944]
[1751990460498,0.36243831,2568.5,2568.4,0.1944]
[1751990466817,4.25576126,2568.5,2568.4,0.1944]
[1751990467006,4.25576126,2568.5,2568.3,0.001]
[1751990467211,4.25591284,2568.4,2568.3,0.001]
[1751990467722,0.36243831,2568.4,2568.3,0.001]
[1751990470514,4.25591284,2568.4,2568.3,0.001]
[1751990470712,0.36243831,2568.4,2568.3,0.001]
[1751990471996,0.36333217,2568.4,2568.3,0.001]
[1751990473030,0.36333217,2568.4,2568.3,5.26883764]
[1751990473231,0.36333217,2568.4,2568.3,5.3077739]
[1751990473905,0.36333217,2568.4,2568.3,5.26883764]
[1751990474308,0.36333217,2568.4,2568.3,1.37521151]
[1751990474526,0.36333217,2568.4,2568.3,4.49793764]
[1751990475635,0.36333217,2568.4,2568.3,4.5368739]
[1751990475933,0.36333217,2568.4,2568.3,5.3320739]
[1751990477336,0.002,2568.7,2568.4,3.89342721]
[1751990477549,0.36402221,2568.6,2568.5,3.89332295]
[1751990477744,0.36401518,2568.6,2568.5,3.89332295]
[1751990478046,0.36401518,2568.6,2568.5,4.08772295]
[1751990478253,0.36401518,2568.6,2568.5,0.1944]
[1751990478604,0.36401518,2568.6,2568.5,4.08772295]
[1751990479344,0.36401518,2568.6,2568.5,5.00635286]
[1751990481116,0.36401518,2568.6,2568.5,10.93135286]
[1751990482220,0.36401518,2568.6,2568.5,1.11302991]
[1751990482464,0.36401518,2568.6,2568.5,0.1944]
[1751990482621,0.36401518,2568.6,2568.5,4.08772295]
[1751990483463,0.36393782,2568.6,2568.5,0.1944]
[1751990484029,0.36393782,2568.6,2568.5,4.08772295]
[1751990486026,0.36593782,2568.6,2568.5,4.08772295]
[1751990489436,0.36638646,2568.6,2568.5,4.08772295]
[1751990492946,0.36638646,2568.6,2568.5,13.07856232]
[1751990493157,0.36638646,2568.6,2568.5,13.8603291]
[1751990493540,0.002,2568.6,2568.5,14.4103291]
[1751990494570,0.002,2568.6,2568.5,24.4103291]
[1751990496151,0.002,2568.6,2568.5,17.60881161]
[1751990496352,0.002,2568.6,2568.5,23.53281161]
[1751990499777,0.0722728,2568.9,2568.8,4.71046826]
[1751990499943,0.0722728,2568.9,2568.8,18.33426]
[1751990500287,0.0722728,2568.9,2568.8,18.48973132]
[1751990500653,0.0722728,2568.9,2568.8,29.03973132]
[1751990501191,0.0722728,2568.9,2568.8,32.53289973]
[1751990503049,0.0722728,2568.9,2568.8,29.03973132]
[1751990504598,0.0722728,2568.9,2568.8,23.11673132]
[1751990504764,0.0722728,2568.9,2568.8,29.03873132]
[1751990507602,0.002,2569.1,2569.0,15.1957652]
[1751990507895,0.002,2569.5,2569.4,4.64515921]
[1751990508190,0.002,2569.5,2569.4,10.76055921]
[1751990510198,0.002,2569.5,2569.4,4.83955921]
[1751990510398,0.002,2569.5,2569.4,10.76055921]
[1751990510701,0.002,2569.5,2569.4,11.8618493]
[1751990511878,0.002,2569.5,2569.4,12.6703493]
[1751990514024,0.002,2569.5,2569.4,11.6674493]
[1751990515184,0.002,2569.5,2569.4,5.7464493]
[1751990515429,0.002,2569.5,2569.4,9.81595921]
[1751990517323,0.002,2569.5,2569.4,10.63085921]
[1751990517526,0.002,2569.5,2569.4,9.81595921]
[1751990517930,0.002,2569.5,2569.1,10.0]
[1751990518103,0.002,2569.5,2569.2,9.85810051]
[1751990518422,0.002,2569.5,2569.2,9.81917789]
[1751990518730,0.002,2569.5,2569.2,3.89217789]
[1751990518910,0.002,2569.5,2569.3,5.927]
[1751990519987,0.002,2569.5,2569.3,9.81905955]
[1751990521223,0.002,2569.5,2569.3,5.927]
[1751990521526,0.002,2569.5,2569.3,9.81904414]
[1751990522788,0.002,2569.5,2569.4,3.9308788]
[1751990523727,0.002,2569.5,2569.4,3.89195921]
[1751990523911,0.002,2569.5,2569.4,4.1252788]
[1751990526633,0.002,2569.5,2569.4,11.47679629]
[1751990526817,0.002,2569.5,2569.4,11.4378767]
[1751990527023,0.002,2569.5,2569.4,13.78179166]
[1751990528131,0.002,2569.5,2569.4,14.54829166]
[1751990528637,0.002,2569.5,2569.4,24.54829166]
[1751990529233,1e-08,2569.5,2569.4,24.54829166]
[1751990530625,1e-08,2569.5,2569.4,28.04888524]
[1751990530931,1e-08,2569.5,2569.4,24.54829166]
[1751990531226,1e-08,2569.5,2569.4,28.04820085]
[1751990531895,1e-08,2569.5,2569.4,33.97320085]
[1751990533528,1e-08,2569.5,2569.4,28.04820085]
[1751990533898,1e-08,2569.5,2569.4,23.66977417]
[1751990534930,1e-08,2569.5,2569.4,30.47129166]
[1751990536632,1e-08,2569.5,2569.4,33.97120085]
[1751990537853,1e-08,2569.5,2569.4,30.47129166]
[1751990538349,1e-08,2569.7,2569.6,12.04467377]
[1751990538515,1e-08,2569.7,2569.6,31.79764934]
[1751990538712,1e-08,2569.7,2569.6,31.99204934]
[1751990539339,0.002,2569.9,2569.6,31.99204934]
[1751990539340,0.002,2569.9,2569.8,15.25945341]
[1751990539523,0.002,2569.9,2569.8,31.67525089]
[1751990540453,0.002,2569.9,2569.8,28.1793709]
[1751990540613,0.002,2569.9,2569.8,32.02826338]
[1751990541542,0.002,2569.9,2569.8,17.93464589]
[1751990541752,0.002,2569.9,2569.8,20.00875341]
[1751990544238,0.002,2569.9,2569.8,14.08575341]
[1751990544552,0.002,2569.9,2569.8,20.00875341]
[1751990545054,0.002,2569.9,2569.8,21.34525341]
[1751990546721,0.002,2569.9,2569.8,24.8411334]
[1751990546921,0.002,2569.9,2569.8,28.69002588]
[1751990551419,1e-08,2569.9,2569.8,25.19414589]
[1751990551924,0.0722728,2570.6,2569.9,13.89120199]
[1751990551925,1e-08,2570.0,2569.9,13.89120199]
[1751990552142,1e-08,2570.0,2569.9,21.49701948]
[1751990555438,0.0722728,2570.6,2570.1,11.3543]
[1751990555639,0.0722728,2570.6,2570.1,31.75492368]
[1751990556039,1e-08,2570.2,2570.1,31.75492368]
[1751990556527,1e-08,2570.2,2570.1,35.24614699]
[1751990557624,1e-08,2570.2,2570.1,19.03340619]
[1751990557830,1e-08,2570.2,2570.1,27.64071926]
[1751990559670,1e-08,2570.2,2570.1,21.72071926]
[1751990559832,1e-08,2570.2,2570.1,27.64171926]
[1751990560031,1e-08,2570.2,2570.1,24.15010619]
[1751990560329,1e-08,2570.2,2570.1,7.67910619]
[1751990560630,1e-08,2570.2,2570.1,20.00529918]
[1751990560855,1e-08,2570.2,2570.1,0.1944]
[1751990561058,1e-08,2570.2,2570.1,6.1154]
[1751990561251,1e-08,2570.2,2570.1,0.1944]
[1751990561445,1e-08,2570.2,2570.1,10.00729918]
[1751990562359,1e-08,2570.2,2570.1,0.1944]
[1751990562558,1e-08,2570.2,2570.1,6.1164]
[1751990562785,3.89125904,2569.9,2569.7,3.49161307]
[1751990562951,3.89099384,2570.1,2569.9,0.1944]
[1751990563156,0.36322528,2570.0,2569.9,0.1944]
[1751990563573,3.89075846,2570.2,2569.9,0.1944]
[1751990563776,0.36318857,2570.1,2569.9,0.1944]
[1751990563972,0.36318857,2570.0,2569.9,0.1944]
[1751990564176,0.36318857,2570.0,2569.8,5.922]
[1751990564388,0.36318857,2570.0,2569.7,0.1944]
[1751990564389,0.36318857,2569.9,2569.7,0.1944]
[1751990564702,4.08520287,2570.2,2569.7,6.1164]
[1751990564703,3.89098402,2570.1,2569.7,6.1164]
[1751990565003,0.3632044,2570.0,2569.7,6.1164]
[1751990565198,0.3632044,2569.9,2569.7,0.1944]
[1751990565402,3.89098402,2570.1,2569.7,6.1174]
[1751990565703,0.36321102,2570.0,2569.7,6.1174]
[1751990565902,0.19440001,2570.2,2569.7,10.00889541]
[1751990566200,0.36317987,2570.1,2570.0,0.1944]
[1751990568121,0.36317987,2570.1,2570.0,6.1184]
[1751990568303,0.36314365,2570.1,2570.0,10.00945058]
[1751990568506,0.36314365,2570.1,2570.0,6.1184]
[1751990569569,0.36314365,2570.1,2570.0,10.00945058]
[1751990569774,0.36314365,2570.1,2570.0,11.39951463]
[1751990570519,1e-08,2570.2,2570.1,3.89089918]
[1751990570723,0.36298768,2570.2,2570.1,3.89089918]
[1751990570878,0.36298768,2570.2,2570.1,4.08529918]
[1751990575120,0.36298768,2570.2,2570.1,0.1944]
[1751990575682,1e-08,2570.2,2570.1,0.1944]
[1751990575992,0.36298768,2570.2,2570.1,0.1944]
[1751990577704,4.25373548,2570.2,2570.1,0.1944]
[1751990578214,0.36298768,2570.2,2570.1,0.1944]
[1751990579117,4.25373548,2570.2,2570.1,0.1944]
[1751990579292,3.89089918,2570.1,2569.8,0.1944]
[1751990579491,0.36298767,2570.0,2569.8,0.1944]
[1751990579700,3.89085155,2570.2,2569.8,0.1944]
[1751990579701,3.89091977,2570.1,2569.8,0.1944]
[1751990579999,0.36286648,2570.0,2569.8,0.1944]
[1751990580226,3.89091977,2570.1,2569.8,0.1944]
[1751990580388,4.25390098,2570.0,2569.8,0.1944]
[1751990580589,3.89106718,2570.0,2569.8,0.1944]
[1751990582199,3.89094069,2570.1,2569.8,0.1944]
[1751990582404,4.25383874,2570.0,2569.8,0.1944]
[1751990582599,3.89107102,2570.0,2569.8,0.1944]
[1751990584310,3.89082645,2570.2,2569.8,0.1944]
[1751990584520,4.25373063,2570.1,2569.8,0.1944]
[1751990584721,0.36280428,2570.0,2569.8,0.1944]
[1751990584926,3.89096071,2570.1,2569.8,0.1944]
[1751990585097,0.36280397,2570.0,2569.8,0.1944]
[1751990585297,4.25388138,2570.0,2569.8,0.1944]
[1751990585527,3.89107741,2570.0,2569.8,0.1944]
[1751990585832,3.89098954,2570.1,2569.8,0.1944]
[1751990585999,0.3628803,2570.0,2569.8,0.1944]
[1751990586400,3.89098954,2570.1,2569.8,0.1944]
[1751990586596,0.36297315,2570.0,2569.8,0.1944]
[1751990587333,3.8907743,2570.2,2569.8,4.08565107]
[1751990587613,0.36312871,2570.1,2569.8,0.1944]
[1751990587943,0.36312871,2570.0,2569.8,0.1944]
[1751990588122,3.8907743,2570.2,2569.8,0.1944]
[1751990588326,4.25422762,2570.1,2569.8,0.1944]
[1751990588511,3.89120199,2569.9,2569.8,0.1944]
[1751990588724,0.36329272,2569.9,2569.4,0.001]
[1751990588933,3.89152832,2569.7,2569.5,0.1944]
[1751990589114,3.89143951,2569.8,2569.5,0.1944]
[1751990589309,4.25476921,2569.7,2569.5,0.1944]
[1751990589622,3.89126455,2569.9,2569.5,0.1944]
[1751990589823,0.36342794,2569.8,2569.5,4.08620613]
[1751990590025,0.36342794,2569.7,2569.5,4.08620613]
[1751990590226,0.36342794,2569.6,2569.5,0.1944]
[1751990591244,0.36342794,2569.6,2569.5,4.08620774]
[1751990591543,0.36342794,2569.6,2569.5,0.1944]
[1751990592114,4.25516065,2569.6,2569.4,0.001]
[1751990592315,0.36342794,2569.5,2569.4,0.001]
[1751990593115,0.36342794,2569.5,2569.4,3.89295921]
[1751990593518,0.36342794,2569.5,2569.4,4.08735921]
[1751990593854,0.36342794,2569.5,2569.4,0.1954]
[1751990594163,0.36342794,2569.5,2569.4,4.08735921]
[1751990594718,10.00967136,2569.9,2569.4,4.08735921]
[1751990595052,0.36363361,2569.8,2569.4,4.08735921]
[1751990595229,0.36363361,2569.7,2569.4,4.08735921]
[1751990595429,0.36363361,2569.6,2569.5,3.89180774]
[1751990595847,1e-08,2570.2,2569.6,0.7841]
[1751990596150,0.36361781,2570.1,2569.9,0.1944]
[1751990596319,0.36361781,2570.0,2569.9,4.08559546]
[1751990596819,0.36361781,2570.1,2569.9,0.1944]
[1751990597044,1.39589169,2570.2,2569.9,4.08558591]
[1751990597239,0.36367034,2570.1,2569.9,0.1944]
[1751990597430,0.36367304,2570.0,2569.9,0.1944]
[1751990597635,1.39594512,2570.2,2569.9,4.08558542]
[1751990597940,0.36366353,2570.1,2569.9,4.08558542]
[1751990598156,1e-08,2570.2,2569.9,4.08558542]
[1751990598439,0.36368091,2570.1,2570.0,4.08538764]
[1751990598819,0.36368091,2570.1,2570.0,0.1944]
[1751990600245,1e-08,2570.2,2570.1,3.89089918]
[1751990600418,1e-08,2570.2,2570.1,3.92980817]
[1751990600622,0.36370689,2570.2,2570.1,5.00841057]
[1751990601148,1e-08,2570.2,2570.1,5.00841057]
[1751990602456,1e-08,2570.2,2570.1,5.04731956]
[1751990602654,1e-08,2570.2,2570.1,10.97131956]
[1751990602958,1e-08,2570.2,2570.1,10.93241057]
[1751990604049,1e-08,2570.2,2570.1,5.00841057]
[1751990604362,1e-08,2570.2,2570.1,4.08529918]
[1751990604852,1e-08,2570.2,2570.1,4.12420817]
[1751990605151,1e-08,2570.2,2570.1,4.08529918]
[1751990605756,1e-08,2570.2,2570.1,0.1944]
[1751990606058,1e-08,2570.2,2569.9,1.19825512]
[1751990606059,1e-08,2570.2,2569.9,5.925]
[1751990606260,1e-08,2570.2,2570.0,0.1944]
[1751990610571,3.89077542,2570.2,2570.0,0.1944]
[1751990610768,3.89089918,2570.1,2570.0,0.1944]
[1751990612284,3.89115688,2570.0,2569.5,13.89173994]
[1751990612472,3.89128052,2569.9,2569.8,0.1944]
[1751990612673,3.89156206,2569.7,2569.4,0.001]
[1751990612854,3.89156206,2569.7,2569.5,0.1944]
[1751990613485,3.89180774,2569.5,2569.4,0.1954]
[1751990614783,3.89170748,2569.6,2569.4,0.1954]
[1751990616157,0.1944,2569.8,2569.4,0.1954]
[1751990616459,3.89147966,2569.8,2569.4,0.001]
[1751990616659,3.89152606,2569.7,2569.5,0.1944]
[1751990617190,0.1944,2570.0,2569.5,0.1944]
[1751990617394,0.1944,2570.0,2569.6,0.1944]
[1751990617395,3.89131079,2569.9,2569.6,0.1944]
[1751990618312,3.89125878,2569.9,2569.6,0.1944]
[1751990619069,3.89138021,2569.8,2569.6,0.1944]
[1751990619265,3.89105058,2570.0,2569.6,0.1944]
[1751990619466,14.0624,2570.1,2569.6,0.1944]
[1751990619467,4.25420524,2569.9,2569.6,0.1944]
[1751990619668,17.95341881,2570.1,2569.6,0.1944]
[1751990619868,0.36299443,2570.0,2569.6,0.1944]
[1751990620071,3.89153923,2569.7,2569.4,0.001]
[1751990620269,0.1944,2569.7,2569.4,0.001]
[1751990620991,0.1944,2569.7,2569.4,3.89292778]
[1751990621195,13.87,2570.1,2569.4,0.001]
[1751990621396,0.36294808,2570.0,2569.5,0.8128]
[1751990621595,0.36294808,2570.0,2569.8,3.89127664]
[1751990621762,10.19440001,2570.2,2569.8,3.89127664]
[1751990621964,0.36296523,2570.1,2569.9,3.89118132]
[1751990622369,0.36296523,2570.1,2569.8,3.89135341]
[1751990622564,0.36296523,2570.1,2569.9,4.08546638]
[1751990622783,0.36296524,2570.2,2569.9,4.08546638]
[1751990623007,0.36301902,2570.1,2569.9,4.08546638]
[1751990623301,1e-08,2570.2,2570.1,3.89089918]
[1751990628226,1e-08,2570.2,2570.1,3.92980817]
[1751990630574,1e-08,2570.2,2570.1,4.71550817]
[1751990630774,1e-08,2570.2,2570.1,20.64450817]
[1751990630969,1e-08,2570.2,2570.1,20.60559918]
[1751990631175,1e-08,2570.2,2570.1,23.15445931]
[1751990633198,1e-08,2570.2,2570.1,23.70445931]
[1751990634508,1e-08,2570.2,2570.1,23.70545931]
[1751990636428,1e-08,2570.6,2570.2,10.55]
[1751990636592,1e-08,2570.6,2570.5,15.21129371]
[1751990636796,1e-08,2570.6,2570.5,25.18858619]
[1751990638106,1e-08,2570.6,2570.5,25.48091229]
[1751990638590,1e-08,2570.6,2570.5,19.54691229]
[1751990638790,1e-08,2570.6,2570.5,32.26353423]
[1751990640812,1e-08,2570.6,2570.5,36.05999818]
[1751990642119,1e-08,2570.6,2570.5,36.25096167]
[1751990642924,1e-08,2570.6,2570.5,36.05999818]
[1751990643418,1e-08,2570.6,2570.5,30.12699818]
[1751990643612,1e-08,2570.6,2570.5,36.05599818]
[1751990645289,1e-08,2570.6,2570.5,36.05499818]
[1751990645926,1e-08,2570.6,2570.5,36.05399818]
[1751990647823,1e-08,2570.6,2570.5,30.12699818]
[1751990648100,1e-08,2570.6,2570.5,36.05399818]
[1751990648432,1e-08,2570.6,2570.5,36.05199818]
[1751990648730,1e-08,2570.6,2570.5,30.12699818]
[1751990649134,1e-08,2570.6,2570.5,36.05199818]
[1751990653007,1e-08,2570.6,2570.5,36.04999818]
[1751990657450,0.002,2571.2,2571.1,15.25938586]
[1751990657750,1e-08,2571.3,2571.2,15.25923459]
[1751990657951,1e-08,2571.3,2571.2,25.83932048]
[1751990660563,1e-08,2571.3,2571.2,15.25923459]
[1751990660759,1e-08,2571.3,2571.2,21.18423459]
[1751990662980,1e-08,2571.3,2571.2,27.96360248]
[1751990663151,1e-08,2571.3,2571.2,31.81549496]
[1751990663961,1e-08,2571.3,2571.2,35.29427058]
[1751990664182,1e-08,2571.3,2571.2,35.29899162]
[1751990664954,1e-08,2571.3,2571.2,29.37099162]
[1751990665265,1e-08,2571.3,2571.2,28.51762373]
[1751990665785,1e-08,2571.3,2571.2,7.37273125]
[1751990665990,1e-08,2571.3,2571.2,9.85312693]
[1751990666158,1e-08,2571.3,2571.2,9.81423459]
[1751990667186,1e-08,2571.3,2571.2,10.36423459]
[1751990667351,1e-08,2571.3,2571.2,4.43923459]
[1751990667681,1e-08,2571.3,2571.2,12.9044705]
[1751990668786,1e-08,2571.3,2571.2,19.68383839]
[1751990668994,1e-08,2571.3,2571.2,29.68383839]
[1751990669291,1e-08,2571.3,2571.2,30.47343839]
[1751990670059,1e-08,2571.3,2571.2,30.47243839]
[1751990670456,1e-08,2571.3,2571.2,33.95593505]
[1751990670693,1e-08,2571.3,2571.2,30.47243839]
[1751990670891,1e-08,2571.3,2571.2,33.95593505]
[1751990671993,1e-08,2571.3,2571.2,29.68283839]
[1751990672196,1e-08,2571.3,2571.2,19.82223459]
[1751990672586,1e-08,2571.3,2571.2,19.82423459]
[1751990672784,1e-08,2571.3,2571.2,23.30773125]
[1751990673568,1e-08,2571.3,2571.2,30.08709914]
[1751990673786,1e-08,2571.3,2571.2,26.60360248]
[1751990674104,1e-08,2571.3,2571.2,23.79132016]
[1751990674306,1e-08,2571.3,2571.2,30.57068805]
[1751990674514,1e-08,2571.3,2571.2,24.08568805]
[1751990674670,1e-08,2571.3,2571.2,23.79032016]
[1751990675814,1e-08,2571.3,2571.2,27.27381682]
[1751990676004,1e-08,2571.3,2571.2,23.79032016]
[1751990676365,1e-08,2571.3,2571.2,3.88923459]
[1751990676572,1e-08,2571.3,2571.2,9.86212693]
[1751990676796,1e-08,2571.3,2571.2,9.82323459]
[1751990676967,1e-08,2571.3,2571.1,0.1944]
[1751990677193,1e-08,2571.3,2571.2,5.937]
[1751990677822,1e-08,2571.3,2571.2,9.82623459]
[1751990678696,1e-08,2571.3,2571.2,18.75360136]
[1751990681818,1e-08,2571.3,2571.2,19.30360136]
[1751990682421,1e-08,2571.3,2571.2,29.30360136]
[1751990684429,1e-08,2571.3,2571.2,29.30560136]
[1751990685230,1e-08,2571.3,2571.2,32.78909802]
[1751990686517,1e-08,2571.3,2571.2,29.30560136]
[1751990686942,1e-08,2571.3,2571.2,23.36660136]
[1751990687136,1e-08,2571.3,2571.2,29.30360136]
[1751990688523,1e-08,2571.3,2571.2,5.83023347]
[1751990688840,1e-08,2571.3,2571.2,21.76723347]
[1751990689747,1e-08,2571.3,2571.2,22.56233347]
[1751990691532,1e-08,2571.3,2571.2,26.0519116]
[1751990691917,1e-08,2571.3,2571.2,22.56233347]
[1751990692125,1e-08,2571.3,2571.2,26.05196078]
[1751990692644,1e-08,2571.3,2571.2,22.56233347]
[1751990694343,1e-08,2571.3,2571.2,26.05196078]
[1751990698965,1e-08,2571.3,2571.2,22.56233347]
[1751990701382,1e-08,2571.3,2571.2,26.05322791]
[1751990701675,1e-08,2571.3,2571.2,22.56233347]
[1751990702590,1e-08,2571.3,2571.2,16.62533347]
[1751990702890,1e-08,2571.3,2571.2,21.20623347]
[1751990703359,1e-08,2571.3,2571.2,15.28023347]
[1751990703695,1e-08,2571.3,2571.2,10.0]
[1751990703889,1e-08,2571.3,2571.2,15.928]
[1751990704090,1e-08,2571.3,2571.2,9.81723459]
[1751990707595,1e-08,2571.3,2571.1,4.08470673]
[1751990707810,1e-08,2571.3,2571.2,5.926]
[1751990708791,1e-08,2571.3,2571.1,0.1954]
[1751990709377,1e-08,2571.3,2571.2,5.925]
[1751990710678,3.88908335,2571.3,2571.2,5.925]
[1751990710893,3.88923459,2571.2,2571.1,0.1954]
[1751990711191,1e-08,2571.3,2571.1,6.1194]
[1751990711787,1e-08,2571.3,2571.2,3.88923459]
[1751990711989,1e-08,2571.3,2571.2,3.92812693]
[1751990714007,1e-08,2571.3,2571.2,0.03889234]
[1751990714303,1e-08,2571.3,2571.2,5.924]
[1751990714689,1e-08,2571.3,2571.2,9.81323459]
[1751990714893,1e-08,2571.3,2571.1,0.1954]
[1751990715071,1e-08,2571.3,2571.2,5.924]
[1751990718586,1e-08,2571.3,2571.2,5.923]
[1751990720393,1e-08,2571.3,2571.2,9.81223459]
[1751990720712,1e-08,2571.3,2571.2,5.921]
[1751990721314,1e-08,2571.3,2571.1,0.1954]
[1751990721315,3.8891473,2571.3,2571.1,0.1954]
[1751990721614,1e-08,2571.3,2571.2,5.922]
[1751990722322,3.88908335,2571.3,2571.1,0.001]
[1751990722486,3.88923459,2571.2,2571.1,5.923]
[1751990722910,4.08356196,2571.3,2571.1,0.001]
[1751990723421,1e-08,2571.3,2571.1,0.001]
[1751990723888,3.88910012,2571.3,2571.1,0.001]
[1751990724621,1e-08,2571.3,2571.1,0.001]
[1751990726438,3.88913486,2571.3,2571.1,0.001]
[1751990726609,1e-08,2571.3,2571.1,0.001]